fUSD/lending_fUSD_20241203
["ID","MTS","AMOUNT","RATE_DAILY","PERIOD"]
[344029108,1733226632558,-500.0,7.699e-05,2]
[344029109,1733226632568,-631.87360462,7.699e-05,2]
[344029110,1733226632578,-500.0,7.699e-05,2]
[344029111,1733226632588,-500.0,7.699e-05,2]
[344029112,1733226632599,-631.87360462,7.699e-05,2]
[344029113,1733226632609,-500.0,7.699e-05,2]
[344029114,1733226632619,-500.0,7.699e-05,2]
[344029115,1733226632629,-631.87360462,7.699e-05,2]
[344029116,1733226632640,-500.0,7.699e-05,2]
[344029117,1733226632651,-631.87360462,7.699e-05,2]
[344029118,1733226632661,-500.0,7.699e-05,2]
[344029119,1733226632671,-500.0,7.699e-05,2]
[344029120,1733226632682,-631.87360462,7.699e-05,2]
[344029121,1733226632691,-500.0,7.699e-05,2]
[344029122,1733226632702,-500.0,7.699e-05,2]
[344029123,1733226632713,-631.87360462,7.699e-05,2]
[344029124,1733226632723,-500.0,7.699e-05,2]
[344029125,1733226632734,-631.87360462,7.699e-05,2]
[344029126,1733226632744,-500.0,7.699e-05,2]
[344029127,1733226632753,-631.87360462,7.699e-05,2]
[344029128,1733226632764,-500.0,7.699e-05,2]
[344029129,1733226632774,-500.0,7.699e-05,2]
[344029130,1733226632784,-631.87360462,7.699e-05,2]
[344029131,1733226632794,-500.0,7.699e-05,2]
[344029132,1733226632803,-631.87360462,7.699e-05,2]
[344029133,1733226632812,-500.0,7.699e-05,2]
[344029134,1733226632822,-500.0,7.699e-05,2]
[344029135,1733226632831,-631.87360462,7.699e-05,2]
[344029136,1733226632841,-500.0,7.699e-05,2]
[344029137,1733226632850,-500.0,7.699e-05,2]
[344029138,1733226632859,-500.0,7.699e-05,2]
[344029139,1733226632868,-500.0,7.699e-05,2]
[344029140,1733226632877,-631.87360462,7.699e-05,2]
[344029141,1733226632887,-500.0,7.699e-05,2]
[344029142,1733226632896,-631.87360462,7.699e-05,2]
[344029143,1733226632905,-500.0,7.699e-05,2]
[344029144,1733226632915,-500.0,7.699e-05,2]
[344029145,1733226632925,-631.87360462,7.699e-05,2]
[344029146,1733226632934,-500.0,7.699e-05,2]
[344029147,1733226632943,-631.87360462,7.699e-05,2]
[344029148,1733226632953,-500.0,7.699e-05,2]
[344029149,1733226632966,-500.0,7.699e-05,2]
[344029150,1733226632976,-631.87360462,7.699e-05,2]
[344029151,1733226632985,-500.0,7.699e-05,2]
[344029152,1733226632995,-631.87360462,7.699e-05,2]
[344029153,1733226633005,-631.87360462,7.699e-05,2]
[344029154,1733226633014,-500.0,7.699e-05,2]
[344029155,1733226633024,-631.87360462,7.699e-05,2]
[344029156,1733226633034,-500.0,7.699e-05,2]
[344029157,1733226633044,-631.87360462,7.699e-05,2]
[344029158,1733226633056,-500.0,7.699e-05,2]
[344029159,1733226633065,-631.87360462,7.699e-05,2]
[344029160,1733226633075,-500.0,7.699e-05,2]
[344029161,1733226633085,-631.87360462,7.699e-05,2]
[344029162,1733226633095,-500.0,7.699e-05,2]
[344029163,1733226633105,-631.87360462,7.699e-05,2]
[344029164,1733226633115,-631.87360462,7.699e-05,2]
[344029165,1733226633125,-631.87360462,7.699e-05,2]
[344029166,1733226633138,-500.0,7.699e-05,2]
[344029167,1733226633148,-631.87360462,7.699e-05,2]
[344029168,1733226633159,-631.87360462,7.699e-05,2]
[344029169,1733226633169,-500.0,7.699e-05,2]
[344029170,1733226633179,-631.87360462,7.699e-05,2]
[344029171,1733226633190,-500.0,7.699e-05,2]
[344029172,1733226633200,-631.87360462,7.699e-05,2]
[344029173,1733226633216,-500.0,7.699e-05,2]
[344029174,1733226633226,-631.87360462,7.699e-05,2]
[344029175,1733226633237,-631.87360462,7.699e-05,2]
[344029176,1733226633247,-631.87360462,7.699e-05,2]
[344029177,1733226633257,-631.87360462,7.699e-05,2]
[344029178,1733226633267,-631.87360462,7.699e-05,2]
[344029179,1733226633278,-631.87360462,7.699e-05,2]
[344029180,1733226633288,-631.87360462,7.699e-05,2]
[344029181,1733226633298,-631.87360462,7.699e-05,2]
[344029182,1733226633309,-631.87360462,7.699e-05,2]
[344029183,1733226633319,-631.87360462,7.699e-05,2]
[344029184,1733226633329,-631.87360462,7.699e-05,2]
[344029185,1733226633339,-631.87360462,7.699e-05,2]
[344029186,1733226633349,-631.87360462,7.699e-05,2]
[344029187,1733226633359,-631.87360462,7.699e-05,2]
[344029188,1733226633369,-631.87360462,7.699e-05,2]
[344029189,1733226633379,-631.87360462,7.699e-05,2]
[344029190,1733226633389,-631.87360462,7.699e-05,2]
[344029191,1733226633399,-631.87360462,7.699e-05,2]
[344029192,1733226633412,-631.87360462,7.699e-05,2]
[344029193,1733226633421,-631.87360462,7.699e-05,2]
[344029194,1733226633431,-631.87360462,7.699e-05,2]
[344029195,1733226633440,-631.87360462,7.699e-05,2]
[344029196,1733226633451,-631.87360462,7.699e-05,2]
[344029197,1733226633463,-631.87360462,7.699e-05,2]
[344029198,1733226633473,-631.87360462,7.699e-05,2]
[344029199,1733226633483,-631.87360462,7.699e-05,2]
[344029200,1733226633494,-631.87360462,7.699e-05,2]
[344029201,1733226633504,-631.87360462,7.699e-05,2]
[344029202,1733226633514,-631.87360462,7.699e-05,2]
[344029203,1733226633524,-631.87360462,7.699e-05,2]
[344029204,1733226633534,-631.87360462,7.699e-05,2]
[344029205,1733226633544,-631.87360462,7.699e-05,2]
[344029206,1733226633554,-631.87360462,7.699e-05,2]
[344029207,1733226633564,-631.87360462,7.699e-05,2]
[344029208,1733226633574,-631.87360462,7.699e-05,2]
[344029209,1733226633583,-631.87360462,7.699e-05,2]
[344029210,1733226633593,-631.87360462,7.699e-05,2]
[344029211,1733226633602,-631.87360462,7.699e-05,2]
[344029212,1733226633612,-175.56116632,7.699e-05,2]
[344029213,1733226633621,-500.0,7.699e-05,2]
[344029214,1733226633631,-500.0,7.699e-05,2]
[344029215,1733226633640,-500.0,7.699e-05,2]
[344029216,1733226633649,-500.0,7.699e-05,2]
[344029217,1733226633658,-500.0,7.699e-05,2]
[344029218,1733226633668,-500.0,7.699e-05,2]
[344029219,1733226633678,-500.0,7.699e-05,2]
[344029220,1733226633687,-500.0,7.699e-05,2]
[344029221,1733226633697,-500.0,7.699e-05,2]
[344029222,1733226633707,-1385.26203573,7.699e-05,2]
[344029223,1733226633716,-1385.26203573,7.699e-05,2]
[344029224,1733226633726,-1385.26203573,7.699e-05,2]
[344029225,1733226633735,-1385.26203573,7.699e-05,2]
[344029226,1733226633745,-1385.26203573,7.699e-05,2]
[344029227,1733226633754,-1385.26203573,7.699e-05,2]
[344029228,1733226633763,-1385.26203573,7.699e-05,2]
[344029229,1733226633773,-1385.26203573,7.699e-05,2]
[344029230,1733226633782,-1385.26203573,7.699e-05,2]
[344029231,1733226633792,-1385.26203573,7.699e-05,2]
[344029232,1733226633801,-1385.26203573,7.699e-05,2]
[344029233,1733226633811,-1385.26203573,7.699e-05,2]
[344029234,1733226633820,-1385.26203573,7.699e-05,2]
[344029235,1733226633830,-1385.26203573,7.699e-05,2]
[344029236,1733226633839,-1385.26203573,7.699e-05,2]
[344029237,1733226633849,-1385.26203573,7.699e-05,2]
[344029238,1733226633859,-1385.26203573,7.699e-05,2]
[344029239,1733226633869,-1385.26203573,7.699e-05,2]
[344029240,1733226633879,-1217.9474183,7.699e-05,2]
[344029241,1733226633888,-48841.30360581,7.699e-05,2]
[344029242,1733226633898,-500.0,7.699e-05,2]
[344029243,1733226633907,-578.2,7.7e-05,2]
[344029244,1733226633917,-150.0,7.7e-05,2]
[344029245,1733226633926,-7945.0,7.7e-05,2]
[344029246,1733226633936,-2246921.31030199,7.7e-05,2]
[344029247,1733226633950,-2372.375,7.7e-05,2]
[344029248,1733226634019,-292.13861516,7.7e-05,2]
[344029249,1733226634031,-1627.16224393,7.7e-05,2]
[344029250,1733226634114,-24264.20931647,7.7e-05,2]
[344029251,1733226634128,-18430.31465745,7.7e-05,2]
[344029252,1733226636332,500.0,7.155e-05,2]
[344029262,1733226637871,-4046.86820665,7.7e-05,2]
[344029263,1733226637924,-987.71730639,7.7e-05,2]
[344029264,1733226638065,-42778.08938976,7.7e-05,2]
[344029322,1733226638642,-2314.0,7.7e-05,2]
[344029324,1733226638654,-37368900.6121074,7.7e-05,2]
[344029329,1733226638691,-4020.79858483,7.7e-05,2]
[344029414,1733226639642,-608.97370915,7.699e-05,2]
[344029415,1733226639653,-11312.02629085,7.7e-05,2]
[344029416,1733226639666,-349.02,7.7e-05,2]
[344029417,1733226639832,-327.7104927,7.7e-05,2]
[344029418,1733226639844,-5285.61168912,7.7e-05,2]
[344029420,1733226640714,-47559.10871971,7.7e-05,2]
[344029421,1733226640879,-2067.23944806,7.7e-05,2]
[344029422,1733226640891,-484.11,7.7e-05,2]
[344029423,1733226640902,-663.255,7.7e-05,2]
[344029424,1733226640913,-5019.68047745,7.7e-05,2]
[344029425,1733226640925,-18108.03792237,7.7e-05,2]
[344029426,1733226640936,-418.21249999,7.7e-05,2]
[344029450,1733226642776,-228827.5570063,7.7e-05,2]
[344029451,1733226642788,-823.25312668,7.7e-05,2]
[344029452,1733226642833,-11091.08590141,7.7e-05,2]
[344029453,1733226642888,-4025.24571897,7.7e-05,2]
[344029454,1733226643026,-3386.72776937,7.7e-05,2]
[344029455,1733226643090,-3071.42856542,7.7e-05,2]
[344029456,1733226643101,-2573.5383075,7.7e-05,2]
[344029460,1733226645792,-5478.2247,7.7e-05,2]
[344029461,1733226645803,-134580.001,7.7e-05,2]
[344029462,1733226645890,-6249.39539171,7.7e-05,2]
[344029463,1733226645902,-272.26,7.7e-05,2]
[344029464,1733226645914,-18058.42523101,7.7e-05,2]
[344029465,1733226646006,-2374.98169738,7.7e-05,2]
[344029466,1733226646017,-480.14367,7.7e-05,2]
[344029467,1733226646097,-11187.58333549,7.7e-05,2]
[344029479,1733226727020,2627.03,7.1e-05,2]
[344029480,1733226746750,38302.08,7.129e-05,2]
[344029484,1733226791048,3226.32,7.02e-05,2]
[344029485,1733226848343,764.7,6.948e-05,2]
[344029486,1733226880626,19754.0,6.948e-05,2]
[344029488,1733226990431,200.0,6.906e-05,2]
[344029489,1733227009598,250.0,6.906e-05,2]
[344029490,1733227059610,193.1,6.923e-05,2]
[344029491,1733227064560,3213.33,6.923e-05,2]
[344029493,1733227107886,2281.68,6.893e-05,2]
[344029494,1733227170580,50000.0,0.0001302,25]
[344029495,1733227199159,273.91,6.953e-05,2]
[344029496,1733227199788,50000.0,0.00013019,25]
[344029498,1733227310033,344279.90392418,0.00017,60]
[344029499,1733227310065,209580.39607582,0.00017,60]
[344029502,1733227513700,23900.0,6.921e-05,2]
[344029503,1733227617374,200.0,6.921e-05,2]
[344029504,1733227640092,257.55,6.888e-05,2]
[344029505,1733227665579,250.0,6.888e-05,2]
[344029506,1733227688026,187.96,6.878e-05,2]
[344029850,1733227768078,400.0,6e-05,2]
[344029862,1733227784448,357.27,6.883e-05,2]
[344029870,1733227815879,1569.61,6.971e-05,2]
[344029881,1733227832144,-335.7575,7.599e-05,2]
[344029882,1733227832154,-310.1934,7.6e-05,2]
[344029883,1733227832164,-345.2995,7.6e-05,2]
[344029884,1733227832177,-5962.0,7.622e-05,2]
[344029885,1733227832187,-13709.0,7.622e-05,2]
[344029886,1733227832197,-150.0,7.622e-05,2]
[344029887,1733227832207,-743.0,7.623e-05,2]
[344029888,1733227832217,-1011.0,7.671e-05,2]
[344029889,1733227832226,-589.51601263,7.673e-05,2]
[344029890,1733227832235,-500.0,7.673e-05,2]
[344029891,1733227832245,-184.2401351,7.69e-05,2]
[344029892,1733227832255,-672.1614318,7.69e-05,2]
[344029893,1733227832265,-231.5597813,7.69e-05,2]
[344029894,1733227832275,-184.2401351,7.695e-05,2]
[344029895,1733227832286,-184.2401351,7.695e-05,2]
[344029896,1733227832295,-672.1614318,7.695e-05,2]
[344029897,1733227832305,-672.1614318,7.695e-05,2]
[344029898,1733227832315,-231.5597813,7.695e-05,2]
[344029899,1733227832325,-231.5597813,7.695e-05,2]
[344029900,1733227832334,-150.0,7.698e-05,2]
[344029901,1733227832344,-150.0,7.699e-05,2]
[344029902,1733227832354,-313.61856437,7.699e-05,2]
[344029903,1733227832363,-1000.0,7.699e-05,2]
[344029904,1733227832372,-1000.0,7.699e-05,2]
[344029905,1733227832382,-1000.0,7.699e-05,2]
[344029906,1733227832391,-1000.0,7.699e-05,2]
[344029907,1733227832401,-374.0,7.699e-05,2]
[344029908,1733227832411,-1000.0,7.699e-05,3]
[344029909,1733227832423,-1000.0,7.699e-05,3]
[344029910,1733227832433,-1217.9474183,7.699e-05,2]
[344029911,1733227832442,-1269.931,7.699e-05,2]
[344029912,1733227832452,-157.456,7.699e-05,2]
[344029913,1733227832462,-919.12,7.699e-05,2]
[344029914,1733227832472,-19764.1513601,7.699e-05,2]
[344029916,1733227833629,-14617.9186399,7.699e-05,2]
[344029917,1733227833640,-1889.27,7.699e-05,2]
[344029918,1733227833651,-1889.27,7.699e-05,2]
[344029919,1733227833661,-1889.27,7.699e-05,2]
[344029920,1733227833674,-1889.27,7.699e-05,2]
[344029921,1733227833685,-1889.27,7.699e-05,2]
[344029922,1733227833695,-1889.27,7.699e-05,2]
[344029923,1733227833705,-1889.27,7.699e-05,2]
[344029924,1733227833715,-1889.27,7.699e-05,2]
[344029925,1733227833725,-1524.29878242,7.699e-05,2]
[344029926,1733227833852,-364.97121758,7.699e-05,2]
[344029927,1733227833863,-219.30602932,7.699e-05,2]
[344029928,1733227833915,-1669.96397068,7.699e-05,2]
[344029929,1733227833928,-785.66102932,7.699e-05,2]
[344029942,1733227837799,-825.069,7.699e-05,2]
[344029943,1733227837811,-278.53997068,7.699e-05,2]
[344029944,1733227837822,-1889.27,7.699e-05,2]
[344029945,1733227837831,-1889.27,7.699e-05,2]
[344029946,1733227837840,-1889.27,7.699e-05,2]
[344029947,1733227837850,-1889.27,7.699e-05,2]
[344029948,1733227837861,-1889.27,7.699e-05,2]
[344029949,1733227837878,-1889.27,7.699e-05,2]
[344029950,1733227837887,-1889.27,7.699e-05,2]
[344029951,1733227837896,-1889.27,7.699e-05,2]
[344029952,1733227837905,-1889.27,7.699e-05,2]
[344029953,1733227837915,-1889.27,7.699e-05,2]
[344029954,1733227837927,-1889.27,7.699e-05,2]
[344029955,1733227837937,-1889.27,7.699e-05,2]
[344029956,1733227837947,-1889.43,7.699e-05,2]
[344029957,1733227837957,-27471.37274103,7.699e-05,2]
[344029958,1733227837966,-612275.12255732,7.7e-05,2]
[344029959,1733227838027,-1123.65886,7.7e-05,2]
[344029960,1733227838038,-339.05227069,7.7e-05,2]
[344029961,1733227838050,-1102.59,7.7e-05,2]
[344029962,1733227838069,-28532.9277,7.7e-05,2]
[344029963,1733227838080,-37416968.7621074,7.7e-05,2]
[344029964,1733227838091,-552.07717313,7.7e-05,2]
[344029965,1733227838140,-337892.83389588,7.7e-05,2]
[344029966,1733227838177,-1269.99759,7.7e-05,2]
[344029967,1733227838188,-1714.16086,7.7e-05,2]
[344029968,1733227838199,-1268.91413351,7.7e-05,2]
[344029973,1733227838532,-4260.0,7.7e-05,2]
[344029974,1733227839456,-17900.0,7.7e-05,2]
[344029977,1733227840128,-4629.486854,7.7e-05,2]
[344029979,1733227840155,-872.63999998,7.7e-05,2]
[344029980,1733227840166,-37175.21945569,7.7e-05,2]
[344029982,1733227840180,-41900.0,7.7e-05,2]
[344029983,1733227840202,-1032.332,7.7e-05,2]
[344029987,1733227840292,-221580.17426735,7.7e-05,2]
[344029988,1733227840326,-654.74000012,7.7e-05,2]
[344029989,1733227840343,-5786.61432721,7.7e-05,2]
[344029990,1733227840501,-5787.42694,7.7e-05,2]
[344029991,1733227840512,-270.08459741,7.7e-05,2]
[344029992,1733227840523,-283.62,7.7e-05,2]
[344029993,1733227840535,-1797.6735,7.7e-05,2]
[344029994,1733227840575,-470.46002236,7.7e-05,2]
[344029995,1733227840587,-333.40718336,7.7e-05,2]
[344029996,1733227840598,-3325.48712724,7.7e-05,2]
[344030011,1733227842865,-8639.35399063,7.7e-05,2]
[344030013,1733227842876,-5471.18302247,7.7e-05,2]
[344030018,1733227842925,-500.0,7.673e-05,2]
[344030019,1733227842949,-321.67443267,7.7e-05,2]
[344030020,1733227842965,-4255.3407978,7.7e-05,2]
[344030021,1733227842994,-349.96898251,7.7e-05,2]
[344030022,1733227843032,-1063.14,7.7e-05,2]
[344030023,1733227843046,-11200.85504994,7.7e-05,2]
[344030024,1733227843089,-115015.81274989,7.7e-05,2]
[344030025,1733227843145,-6232.70573528,7.7e-05,2]
[344030026,1733227843157,-13150.95115853,7.7e-05,2]
[344030027,1733227843169,-485.82,7.7e-05,2]
[344030028,1733227843185,-582.72853,7.7e-05,2]
[344030029,1733227843197,-1171.47795,7.7e-05,2]
[344030030,1733227843209,-434.67999985,7.7e-05,2]
[344030031,1733227843236,-36070.54081851,7.7e-05,2]
[344030033,1733227843248,-1322.175998,7.7e-05,2]
[344030034,1733227843274,-5137.60035391,7.7e-05,2]
[344030035,1733227843285,-10567.58378877,7.7e-05,2]
[344030036,1733227843297,-12682.31419224,7.7e-05,2]
[344030037,1733227843308,-7519.65504518,7.7e-05,2]
[344030039,1733227843319,-561.642236,7.7e-05,2]
[344030041,1733227843331,-3282.87249341,7.7e-05,2]
[344030064,1733227845905,-1411.3,7.7e-05,2]
[344030065,1733227845964,-1571.57301345,7.7e-05,2]
[344030080,1733227848711,400.0,7e-05,2]
[344030083,1733227860471,288.78,6.87e-05,2]
[344030096,1733227874828,400.0,7e-05,2]
[344030097,1733227876654,400.0,7e-05,2]
[344030098,1733227880415,400.0,7e-05,2]
[344030099,1733227882300,400.0,7e-05,2]
[344030100,1733227884470,400.0,7e-05,2]
[344030101,1733227885728,400.0,7e-05,2]
[344030102,1733227887455,400.0,7e-05,2]
[344030104,1733227902216,400.0,7e-05,2]
[344030105,1733227917776,400.0,7e-05,2]
[344030109,1733227921900,400.0,7e-05,2]
[344030126,1733227930650,380.0,7e-05,2]
[344030131,1733227962091,632.83,7.016e-05,2]
[344030133,1733227995694,500.0,7.052e-05,2]
[344030137,1733228286413,250.0,7.136e-05,2]
[344030138,1733228287828,50000.0,0.00013021,25]
[344030143,1733228391628,403010.34051021,7e-05,2]
[344030144,1733228453987,180.02,7.058e-05,2]
[344030150,1733228551493,1000.0,7.163e-05,2]
[344030152,1733228692275,50000.0,0.00013021,25]
[344030153,1733228723719,500.0,6.904e-05,2]
[344030242,1733228850992,23900.0,6.876e-05,2]
[344030265,1733228978985,1271.0,6.9e-05,2]
[344030284,1733229031958,-2130.499999,7.4e-05,2]
[344030285,1733229031968,-667.0,7.473e-05,2]
[344030286,1733229031978,-194.584079,7.473e-05,2]
[344030287,1733229031987,-500.0,7.534e-05,2]
[344030288,1733229031996,-6274.381122,7.671e-05,2]
[344030291,1733229032039,-10857.50257626,7.671e-05,2]
[344030301,1733229032544,-473.89346681,7.671e-05,2]
[344030302,1733229032568,-17655.22283493,7.671e-05,2]
[344030303,1733229032580,-200.0,7.683e-05,2]
[344030304,1733229032595,-552.72040552,7.69e-05,2]
[344030305,1733229032608,-694.67934447,7.69e-05,2]
[344030306,1733229032624,-349.8838426,7.69e-05,2]
[344030307,1733229032638,-1173.141,7.691e-05,2]
[344030308,1733229032649,-349.8838426,7.695e-05,2]
[344030309,1733229032659,-150.0,7.698e-05,2]
[344030310,1733229032670,-1243.18,7.699e-05,2]
[344030311,1733229032681,-1000.0,7.699e-05,2]
[344030312,1733229032691,-1000.0,7.699e-05,2]
[344030313,1733229032703,-1000.0,7.699e-05,2]
[344030314,1733229032713,-1000.0,7.699e-05,2]
[344030315,1733229032725,-476.57467905,7.699e-05,2]
[344030316,1733229032738,-63385.23160067,7.7e-05,2]
[344030317,1733229032751,-1893.0,7.7e-05,2]
[344030318,1733229032764,-563.0,7.7e-05,2]
[344030319,1733229032775,-816.0,7.7e-05,2]
[344030320,1733229032785,-3760.0,7.7e-05,2]
[344030321,1733229032795,-1252.0,7.7e-05,2]
[344030322,1733229032804,-3528.0,7.7e-05,2]
[344030323,1733229032814,-975.0,7.7e-05,2]
[344030324,1733229032824,-535.0,7.7e-05,2]
[344030325,1733229032834,-1261.0,7.7e-05,2]
[344030326,1733229032844,-150.0,7.7e-05,2]
[344030327,1733229032853,-633.0,7.7e-05,2]
[344030328,1733229032863,-566.0,7.7e-05,2]
[344030329,1733229032872,-4563645.28965913,7.7e-05,2]
[344030330,1733229032904,-1000.09,7.7e-05,2]
[344030331,1733229032916,-8816.85315477,7.7e-05,2]
[344030332,1733229033028,-6870.55974653,7.7e-05,2]
[344030343,1733229037897,-272.272,7.7e-05,2]
[344030344,1733229037909,-318.23208331,7.7e-05,2]
[344030345,1733229038013,-4682.56727676,7.7e-05,2]
[344030346,1733229038025,-974.43,7.7e-05,2]
[344030347,1733229038076,-9915.1,7.7e-05,2]
[344030348,1733229038088,-9274.3,7.7e-05,2]
[344030349,1733229038137,-259.33792765,7.7e-05,2]
[344030350,1733229038154,-1629.905,7.7e-05,2]
[344030351,1733229038197,-1612.45893613,7.7e-05,2]
[344030352,1733229038256,-21570957.9571767,7.7e-05,2]
[344030353,1733229038266,-5605.90070062,7.7e-05,2]
[344030354,1733229038274,-202.0,7.7e-05,2]
[344030355,1733229038283,-202.0,7.7e-05,2]
[344030356,1733229038292,-202.0,7.7e-05,2]
[344030357,1733229038302,-202.0,7.7e-05,2]
[344030358,1733229038311,-202.0,7.7e-05,2]
[344030360,1733229038320,-202.0,7.7e-05,2]
[344030361,1733229038329,-202.0,7.7e-05,2]
[344030362,1733229038339,-210.0,7.7e-05,2]
[344030363,1733229038348,-210.0,7.7e-05,2]
[344030364,1733229038357,-210.0,7.7e-05,2]
[344030365,1733229038366,-2085.0,7.7e-05,2]
[344030366,1733229038376,-216.0,7.7e-05,2]
[344030367,1733229038386,-216.0,7.7e-05,2]
[344030368,1733229038395,-216.0,7.7e-05,2]
[344030369,1733229038405,-216.0,7.7e-05,2]
[344030370,1733229038414,-216.0,7.7e-05,2]
[344030371,1733229038423,-216.0,7.7e-05,2]
[344030372,1733229038433,-216.0,7.7e-05,2]
[344030373,1733229038442,-216.0,7.7e-05,2]
[344030374,1733229038452,-216.0,7.7e-05,2]
[344030375,1733229038461,-600.0,7.7e-05,2]
[344030376,1733229038470,-600.0,7.7e-05,2]
[344030377,1733229038480,-15833131.90423008,7.7e-05,2]
[344030383,1733229039870,-502.2,7.7e-05,2]
[344030384,1733229039930,-5483.53178,7.7e-05,2]
[344030385,1733229039943,-274.95,7.7e-05,2]
[344030386,1733229039991,-718.41881919,7.7e-05,2]
[344030387,1733229040003,-293.56095028,7.7e-05,2]
[344030388,1733229040015,-262.15700002,7.7e-05,2]
[344030389,1733229040237,-1000.0,7.7e-05,2]
[344030390,1733229040314,-650.55111802,7.7e-05,2]
[344030409,1733229042947,-150.0,7.699e-05,2]
[344030410,1733229042956,-150.0,7.7e-05,2]
[344030411,1733229042966,-388.9575709,7.7e-05,2]
[344030412,1733229043007,-8124.88044464,7.7e-05,2]
[344030413,1733229043018,-2197.4727514,7.7e-05,2]
[344030414,1733229043030,-8125.31850053,7.7e-05,2]
[344030415,1733229043041,-409.9555898,7.7e-05,2]
[344030416,1733229043053,-9569.350105,7.7e-05,2]
[344030417,1733229043090,-9782.56538848,7.7e-05,2]
[344030418,1733229043103,-6933.57731823,7.7e-05,2]
[344030419,1733229043114,-10670.95745043,7.7e-05,2]
[344030420,1733229043163,-50130.70468253,7.7e-05,2]
[344030421,1733229043176,-22962.09038652,7.7e-05,2]
[344030422,1733229043188,-63173.5524631,7.7e-05,2]
[344030423,1733229043213,-3512.71619192,7.7e-05,2]
[344030424,1733229043265,-80906.87579201,7.7e-05,2]
[344030425,1733229043307,-195954.22452174,7.7e-05,2]
[344030430,1733229045623,-1000000.0,7.7e-05,2]
[344030433,1733229046391,-313.9,7.7e-05,2]
[344030434,1733229046475,-365.448,7.7e-05,2]
[344030435,1733229046497,-1637.552,7.7e-05,2]
[344030436,1733229046507,-74014.84799958,7.7e-05,2]
[344030438,1733229047328,-500.0,7.6e-05,2]
[344030439,1733229047338,-3322.698727,7.7e-05,2]
[344030440,1733229047350,-1747.8,7.7e-05,2]
[344030454,1733229069461,400.0,7e-05,2]
[344030456,1733229069602,-174.339521,7.473e-05,2]
[344030458,1733229069626,-630.0,7.7e-05,2]
[344030459,1733229069651,-248.445,7.7e-05,2]
[344030460,1733229069680,-998947.215479,7.7e-05,2]
[344030462,1733229071564,800.0,7.1e-05,2]
[344030464,1733229082501,-1200.0,7.2e-05,2]
[344030465,1733229082526,-1600.0,7.3e-05,2]
[344030466,1733229082551,-2000.0,7.4e-05,2]
[344030467,1733229082576,-400.0,7.5e-05,2]
[344030468,1733229082601,-400.0,7.6e-05,2]
[344030469,1733229082624,-200.0,7.679e-05,2]
[344030470,1733229082648,-200.0,7.684e-05,2]
[344030471,1733229082674,-496.5953685,7.695e-05,2]
[344030472,1733229082698,-536.734,7.7e-05,2]
[344030473,1733229082726,-992966.6706315,7.7e-05,2]
[344030474,1733229085190,250.0,7.101e-05,2]
[344030503,1733229140817,242.24,7.137e-05,2]
[344030508,1733229152532,250.0,7.137e-05,2]
[344030524,1733229819673,231.02,7.118e-05,2]
[344030525,1733229882026,250.0,7.146e-05,2]
[344030526,1733229911265,150.0,6.929e-05,2]
[344030690,1733230232172,-802.08250709,7.599e-05,2]
[344030691,1733230232234,-8964.38269291,7.599e-05,2]
[344030692,1733230232244,-300.0,7.599e-05,2]
[344030693,1733230232254,-1000.0,7.6e-05,2]
[344030694,1733230232263,-500.0,7.673e-05,2]
[344030695,1733230232273,-200.0,7.677e-05,2]
[344030696,1733230232284,-200.0,7.684e-05,2]
[344030697,1733230232294,-233.255895,7.69e-05,2]
[344030698,1733230232303,-200.0,7.693e-05,2]
[344030699,1733230232313,-233.255895,7.695e-05,2]
[344030700,1733230232322,-233.255895,7.695e-05,2]
[344030701,1733230232332,-150.0,7.698e-05,2]
[344030702,1733230232342,-150.0,7.699e-05,2]
[344030703,1733230232351,-115.84962209,7.699e-05,2]
[344030704,1733230232363,-35.95913951,7.699e-05,2]
[344030705,1733230232372,-1250.5,7.699e-05,2]
[344030706,1733230232382,-250.5418698,7.699e-05,2]
[344030707,1733230232394,-159.04752029,7.699e-05,2]
[344030708,1733230232429,-340.95247973,7.699e-05,2]
[344030709,1733230232439,-500.0,7.699e-05,2]
[344030710,1733230232449,-634.99148468,7.699e-05,2]
[344030711,1733230232459,-173.91911534,7.699e-05,2]
[344030712,1733230232469,-6411.27968312,7.699e-05,2]
[344030713,1733230232479,-41130.34919545,7.699e-05,2]
[344030714,1733230232508,-139788.62022115,7.699e-05,2]
[344030715,1733230232519,-50763.13685522,7.699e-05,2]
[344030721,1733230232682,-85460.95057698,7.699e-05,2]
[344030722,1733230232691,-183.889,7.7e-05,2]
[344030723,1733230232702,-3755.0,7.7e-05,2]
[344030724,1733230232712,-150.0,7.7e-05,2]
[344030725,1733230232721,-150.0,7.7e-05,2]